[Event "2nd FIDE WCC Rapid G10"]
[Site "Minsk"]
[Date "2018.06.23"]
[Round "9"]
[White "Edithso, Samantha"]
[Black "Zhapova, Yana"]
[Result "1-0"]
[ECO "B15"]
[WhiteElo "1714"]
[BlackElo "1597"]
[Annotator "NA RC"]
[PlyCount "97"]
[EventDate "2018.06.22"]
[EventType "rapid"]
[EventCountry "BLR"]
[SourceTitle "playchess.com"]
[Source "ChessBase"]
[SourceQuality "1"]
[TimeControl "600+5"]

1. e4 {[%emt 0:00:00]} c6 {[%emt 0:00:00]} 2. d4 {[%emt 0:00:00]} d5 {[%emt 0:00:01]} 3. Nc3 {[%emt 0:00:00]} dxe4 {[%emt 0:00:01]} 4. Nxe4 {[%emt 0:00:01]} Nf6 {[%emt 0:00:00]} 5. Nxf6+ {[%emt 0:00:01]} exf6 {[%emt 0:00:01]} 6. c3 {[%emt 0:00:02]} Bd6 {[%emt 0:00:02]} 7. Nf3 {[%emt 0:00:05]} O-O {[%emt 0:00:06]} 8. Be2 {[%emt 0:00:03]} Re8 {[%emt 0:00:11]} 9. O-O {[%emt 0:00:06]} Qc7 {[%emt 0:00:01]} 10. h3 {[%emt 0:00:06]} Nd7 {[%emt 0:00:07]} 11. Be3 {[%emt 0:00:08]} Nf8 {[%emt 0:00:02]} 12. Qc2 {[%emt 0:00:18]} Be6 {[%emt 0:00:07]} 13. Bd3 {[%emt 0:00:10]} Qd7 {[%emt 0:00:53]} 14. Rfe1 {[%emt 0:01:08]} Rad8 {[%emt 0:02:09]} 15. Qd2 {[%emt 0:00:08]} Ng6 {[%emt 0:00:14]} 16. Bxg6 {[%emt 0:00:08]} fxg6 {[%emt 0:00:07]} 17. Bf4 {[%emt 0:00:13]} Qf7 {[%emt 0:00:33]} 18. Bxd6 {[%emt 0:00:08]} Rxd6 {[%emt 0:00:01]} 19. Qf4 {[%emt 0:00:08]} Rd7 {[%emt 0:00:09]} 20. Nd2 {[%emt 0:00:25]} Rde7 {[%emt 0:00:50]} 21. b3 {[%emt 0:00:47]} a5 {[%emt 0:00:10]} 22. Re3 {[%emt 0:00:10]} Bc8 {[%emt 0:00:29]} 23. Rae1 {[%emt 0:00:31]} Rxe3 {[%emt 0:00:13]} 24. fxe3 {[%emt 0:00:08]} f5 {[%emt 0:00:12]} 25. Nc4 {[%emt 0:00:11]} Qd5 {[%emt 0:00:12]} 26. Qc7 {[%emt 0:00:59]} Rd8 {[%emt 0:01:00]} 27. Nb6 {[%emt 0:00:22]} Qd6 {[%emt 0:00:32]} 28. Qxd6 {[%emt 0:00:02]} Rxd6 {[%emt 0:00:01]} 29. Nxc8 {[%emt 0:00:02]} Re6 {[%emt 0:00:05]} 30. Nb6 {[%emt 0:00:06]} Kf7 {[%emt 0:00:08]} 31. Nc4 {[%emt 0:00:02]} Re8 {[%emt 0:00:10]} 32. Nd6+ {[%emt 0:00:02]} Ke7 {[%emt 0:00:04]} 33. Nxe8 {[%emt 0:00:03]} Kxe8 {[%emt 0:00:01]} 34. e4 {[%emt 0:00:01]} Kd7 {[%emt 0:00:05]} 35. exf5 {[%emt 0:00:02]} gxf5 {[%emt 0:00:01]} 36. Re5 {[%emt 0:00:01]} g6 {[%emt 0:00:01]} 37. Rxa5 {[%emt 0:00:01]} Kd6 {[%emt 0:00:07]} 38. Kf2 {[%emt 0:00:03]} h5 {[%emt 0:00:05]} 39. Ke3 {[%emt 0:00:01]} Kc7 {[%emt 0:00:05]} 40. Kf4 {[%emt 0:00:04]} b6 {[%emt 0:00:05]} 41. Re5 {[%emt 0:00:03]} Kd6 {[%emt 0:00:02]} 42. Kg5 {[%emt 0:00:01]} c5 {[%emt 0:00:03]} 43. Kxg6 {[%emt 0:00:03]} cxd4 {[%emt 0:00:14]} 44. cxd4 {[%emt 0:00:02]} f4 45. Kxh5 {[%emt 0:00:03]} b5 {[%emt 0:00:03]} 46. Kg5 {[%emt 0:00:01]} b4 {[%emt 0:00:02]} 47. h4 {[%emt 0:00:02]} f3 {[%emt 0:00:06]} 48. gxf3 {[%emt 0:00:03]} Kd7 {[%emt 0:00:01]} 49. h5 {[%emt 0:00:02] Ke8} 1-0

[Event "2nd FIDE WCC Rapid G10"]
[Site "Minsk"]
[Date "2018.06.23"]
[Round "9"]
[White "Vlasova, Olesia"]
[Black "Mutina, Sofia"]
[Result "1-0"]
[ECO "C05"]
[WhiteElo "1682"]
[BlackElo "1341"]
[Annotator "NA RC"]
[PlyCount "161"]
[EventDate "2018.06.22"]
[EventType "rapid"]
[EventCountry "BLR"]
[SourceTitle "playchess.com"]
[Source "ChessBase"]
[SourceQuality "1"]
[TimeControl "600+5"]

1. e4 {[%emt 0:00:00]} e6 {[%emt 0:00:01]} 2. d4 {[%emt 0:00:00]} d5 {[%emt 0:00:01]} 3. Nd2 {[%emt 0:00:00]} Nf6 {[%emt 0:00:01]} 4. e5 {[%emt 0:00:01]} Nfd7 {[%emt 0:00:01]} 5. Bd3 {[%emt 0:00:01]} c5 {[%emt 0:00:01]} 6. c3 {[%emt 0:00:01]} b5 {[%emt 0:00:09]} 7. Bxb5 {[%emt 0:00:10]} Qb6 {[%emt 0:00:01]} 8. Bxd7+ {[%emt 0:00:04]} Nxd7 {[%emt 0:00:02]} 9. Ne2 {[%emt 0:00:07]} cxd4 {[%emt 0:00:09]} 10. cxd4 {[%emt 0:00:03]} Ba6 {[%emt 0:00:13]} 11. Nf3 {[%emt 0:00:23]} Bb4+ {[%emt 0:00:01]} 12. Bd2 {[%emt 0:00:04]} Rb8 {[%emt 0:00:05]} 13. b3 {[%emt 0:00:20]} O-O {[%emt 0:00:28]} 14. O-O {[%emt 0:00:07]} Bxd2 {[%emt 0:00:12]} 15. Qxd2 {[%emt 0:00:05]} Rfc8 {[%emt 0:00:12]} 16. Rac1 {[%emt 0:00:29]} Qb5 {[%emt 0:00:33]} 17. Ng3 {[%emt 0:00:59]} Nb6 {[%emt 0:00:52]} 18. h3 {[%emt 0:00:45]} Qd7 {[%emt 0:00:27]} 19. Rfe1 {[%emt 0:00:03]} Qe7 {[%emt 0:00:19]} 20. Qa5 {[%emt 0:01:17]} Qb7 {[%emt 0:00:29]} 21. Qd2 {[%emt 0:02:30]} Qe7 {[%emt 0:00:05]} 22. Rxc8+ {[%emt 0:00:47]} Rxc8 {[%emt 0:00:01]} 23. Rc1 {[%emt 0:00:11]} Qa3 {[%emt 0:00:30]} 24. Rxc8+ {[%emt 0:00:04]} Nxc8 {[%emt 0:00:04]} 25. Qc2 {[%emt 0:00:11]} h6 {[%emt 0:00:04]} 26. Nf1 {[%emt 0:00:35]} Ne7 {[%emt 0:00:13]} 27. Ne3 {[%emt 0:00:44]} Bb5 {[%emt 0:00:14]} 28. Nd1 {[%emt 0:01:20]} Nc6 {[%emt 0:00:35]} 29. Nc3 {[%emt 0:00:13]} Qa6 {[%emt 0:01:08]} 30. Nxb5 {[%emt 0:00:04]} Qxb5 {[%emt 0:00:01]} 31. Qc3 {[%emt 0:00:13]} Kf8 {[%emt 0:00:18]} 32. a4 {[%emt 0:00:05]} Qb6 {[%emt 0:00:06]} 33. Kf1 {[%emt 0:00:06]} Ke7 {[%emt 0:00:15]} 34. Ke2 {[%emt 0:00:06]} Kd7 {[%emt 0:00:03]} 35. Kd2 {[%emt 0:00:09]} a5 {[%emt 0:00:13]} 36. Kc2 {[%emt 0:00:06]} Nb4+ {[%emt 0:00:01]} 37. Kd2 {[%emt 0:00:07]} Na2 {[%emt 0:00:07]} 38. Qb2 {[%emt 0:00:09]} Nb4 {[%emt 0:00:01]} 39. Ke3 {[%emt 0:00:07]} Nc6 {[%emt 0:00:05]} 40. Qc3 {[%emt 0:00:03]} Kc7 {[%emt 0:00:35]} 41. Ne1 {[%emt 0:00:03]} Kd7 {[%emt 0:00:01]} 42. Nd3 {[%emt 0:00:02]} Ke7 {[%emt 0:00:07]} 43. Qc5+ {[%emt 0:00:03]} Qxc5 {[%emt 0:00:02]} 44. Nxc5 {[%emt 0:00:01]} Nd8 {[%emt 0:00:05]} 45. Kd3 {[%emt 0:00:03]} Nc6 {[%emt 0:00:07]} 46. Kc3 {[%emt 0:00:03]} Kd8 {[%emt 0:00:02]} 47. Nd3 {[%emt 0:00:03]} Kc7 {[%emt 0:00:09]} 48. b4 {[%emt 0:00:01]} Kb6 {[%emt 0:00:08]} 49. b5 {[%emt 0:00:11]} Nd8 {[%emt 0:00:08]} 50. Nc5 {[%emt 0:00:02]} Nb7 {[%emt 0:00:08]} 51. Nxb7 {[%emt 0:00:03]} Kxb7 52. f4 {[%emt 0:00:02]} g6 {[%emt 0:00:09]} 53. Kd3 {[%emt 0:00:01]} Kb6 {[%emt 0:00:01]} 54. Ke3 {[%emt 0:00:01]} Kb7 {[%emt 0:00:02]} 55. g4 {[%emt 0:00:01]} Kb6 {[%emt 0:00:04]} 56. h4 {[%emt 0:00:02]} Kb7 {[%emt 0:00:07]} 57. h5 {[%emt 0:00:12]} Kb6 {[%emt 0:00:18]} 58. hxg6 {[%emt 0:00:04]} fxg6 {[%emt 0:00:01]} 59. f5 {[%emt 0:00:07]} gxf5 {[%emt 0:00:21]} 60. gxf5 {[%emt 0:00:00]} exf5 {[%emt 0:00:01]} 61. Kf4 {[%emt 0:00:02]} Kc7 {[%emt 0:00:05]} 62. Kxf5 {[%emt 0:00:02]} Kd7 {[%emt 0:00:03]} 63. Kg6 {[%emt 0:00:01]} Ke6 {[%emt 0:00:03]} 64. Kxh6 {[%emt 0:00:02]} Kd7 {[%emt 0:00:01]} 65. Kg6 {[%emt 0:00:00]} Ke6 {[%emt 0:00:01]} 66. b6 {[%emt 0:00:02]} Kd7 {[%emt 0:00:01]} 67. Kf7 {[%emt 0:00:00]} Kc6 {[%emt 0:00:01]} 68. e6 {[%emt 0:00:01]} Kxb6 {[%emt 0:00:01]} 69. e7 {[%emt 0:00:01]} Kc7 {[%emt 0:00:21]} 70. e8=Q {[%emt 0:00:03]} Kb6 {[%emt 0:00:02]} 71. Qe6+ {[%emt 0:00:02]} Kc7 {[%emt 0:00:02]} 72. Qxd5 {[%emt 0:00:02]} Kb6 {[%emt 0:00:01]} 73. Qc5+ {[%emt 0:00:02]} Ka6 74. Ke6 {[%emt 0:00:04]} Kb7 {[%emt 0:00:04]} 75. Qd6 {[%emt 0:00:02]} Ka7 {[%emt 0:00:01]} 76. Kd5 {[%emt 0:00:02]} Kb7 {[%emt 0:00:01]} 77. Kc5 {[%emt 0:00:00]} Ka7 {[%emt 0:00:01]} 78. Qb6+ {[%emt 0:00:02]} Ka8 {[%emt 0:00:01]} 79. Qd8+ {[%emt 0:00:03]} Kb7 {[%emt 0:00:01]} 80. Qd7+ {[%emt 0:00:02]} Ka8 {[%emt 0:00:02]} 81. Kb6 {[%emt 0:00:01]} 1-0

[Event "2nd FIDE WCC Rapid G10"]
[Site "Minsk"]
[Date "2018.06.23"]
[Round "9"]
[White "Kleymenova, Valeria"]
[Black "Vu, My Linh"]
[Result "0-1"]
[ECO "A45"]
[WhiteElo "1669"]
[BlackElo "1319"]
[Annotator "NA RC"]
[PlyCount "144"]
[EventDate "2018.06.22"]
[EventType "rapid"]
[EventCountry "BLR"]
[SourceTitle "playchess.com"]
[Source "ChessBase"]
[SourceQuality "1"]
[TimeControl "600+5"]

1. d4 {[%emt 0:00:00]} Nf6 {[%emt 0:00:01]} 2. e3 {[%emt 0:00:00]} g6 {[%emt 0:00:01]} 3. f4 {[%emt 0:00:00]} Bg7 {[%emt 0:00:01]} 4. Nf3 {[%emt 0:00:02]} O-O {[%emt 0:00:03]} 5. Bd3 {[%emt 0:00:02]} d6 {[%emt 0:00:02]} 6. O-O {[%emt 0:00:05]} c5 {[%emt 0:00:06]} 7. c3 {[%emt 0:00:03]} Nc6 {[%emt 0:00:02]} 8. Qe2 {[%emt 0:00:32]} b6 {[%emt 0:00:07]} 9. Nbd2 {[%emt 0:00:05]} d5 {[%emt 0:00:13]} 10. Ne5 {[%emt 0:00:04]} Nxe5 {[%emt 0:00:11]} 11. fxe5 {[%emt 0:00:02]} Ng4 {[%emt 0:00:19]} 12. Nf3 {[%emt 0:00:39]} c4 {[%emt 0:00:09]} 13. Bc2 {[%emt 0:00:02]} f6 {[%emt 0:00:02]} 14. exf6 {[%emt 0:00:19]} Nxf6 {[%emt 0:00:02]} 15. e4 {[%emt 0:00:11]} dxe4 {[%emt 0:00:31]} 16. Bxe4 {[%emt 0:00:03]} Nxe4 {[%emt 0:00:02]} 17. Qxe4 {[%emt 0:00:04]} Bf5 {[%emt 0:00:01]} 18. Qe1 {[%emt 0:01:29]} Bd3 {[%emt 0:00:11]} 19. Rf2 {[%emt 0:00:02]} Qd6 {[%emt 0:00:40]} 20. Bg5 {[%emt 0:01:28]} Rf7 {[%emt 0:00:42]} 21. Bh4 {[%emt 0:00:53]} Raf8 {[%emt 0:00:43]} 22. Bg3 {[%emt 0:00:09]} Qc6 {[%emt 0:00:12]} 23. Ne5 {[%emt 0:02:06]} Bxe5 {[%emt 0:00:11]} 24. Rxf7 {[%emt 0:00:07]} Bxd4+ {[%emt 0:00:28]} 25. cxd4 {[%emt 0:00:48]} Rxf7 {[%emt 0:00:03]} 26. Qe5 {[%emt 0:00:23]} Qf6 {[%emt 0:00:20]} 27. Qxf6 {[%emt 0:00:31]} exf6 {[%emt 0:00:13]} 28. Re1 {[%emt 0:00:07]} Rd7 {[%emt 0:00:05]} 29. Bf2 {[%emt 0:00:04]} Kf7 {[%emt 0:00:04]} 30. h3 {[%emt 0:00:03]} b5 {[%emt 0:00:13]} 31. a3 {[%emt 0:00:25]} a5 {[%emt 0:00:03]} 32. Ra1 {[%emt 0:00:20]} b4 {[%emt 0:00:10]} 33. axb4 {[%emt 0:00:03]} axb4 {[%emt 0:00:01]} 34. Be1 {[%emt 0:00:22]} Rxd4 {[%emt 0:00:18]} 35. Bxb4 {[%emt 0:00:03]} Rd7 {[%emt 0:00:01]} 36. Bc3 {[%emt 0:00:05]} Rd6 {[%emt 0:00:11]} 37. Ra7+ {[%emt 0:00:05]} Kg8 {[%emt 0:00:07]} 38. Ra8+ {[%emt 0:00:12]} Kg7 {[%emt 0:00:04]} 39. Ra7+ {[%emt 0:00:17]} Kh6 {[%emt 0:00:02]} 40. Bb4 {[%emt 0:00:16]} Rb6 {[%emt 0:00:44]} 41. Ba3 {[%emt 0:00:35]} g5 {[%emt 0:00:08]} 42. Kf2 {[%emt 0:00:06]} Re6 {[%emt 0:00:06]} 43. Kg3 {[%emt 0:00:05]} Kg6 {[%emt 0:00:04]} 44. Kh2 {[%emt 0:00:06]} h5 {[%emt 0:00:03]} 45. Bf8 {[%emt 0:00:09]} Re2 {[%emt 0:00:33]} 46. Ba3 {[%emt 0:00:07]} Be4 {[%emt 0:00:05]} 47. Bf8 {[%emt 0:00:08]} Rxg2+ {[%emt 0:00:02]} 48. Kh1 {[%emt 0:00:01]} Rxb2+ {[%emt 0:00:03]} 49. Kg1 {[%emt 0:00:01]} Rb7 {[%emt 0:00:16]} 50. Ra4 {[%emt 0:00:08]} Bd3 {[%emt 0:00:02]} 51. Kf2 {[%emt 0:00:04]} Rc7 {[%emt 0:00:10]} 52. Ke3 {[%emt 0:00:06]} Bc2 {[%emt 0:00:04]} 53. Ra2 {[%emt 0:00:03]} Bf5 {[%emt 0:00:12]} 54. Kd2 {[%emt 0:00:06]} c3+ {[%emt 0:00:01]} 55. Kc1 {[%emt 0:00:01]} c2 {[%emt 0:00:02]} 56. Bd6 {[%emt 0:00:03]} Rb7 {[%emt 0:00:02]} 57. Ra1 {[%emt 0:00:04]} Rd7 {[%emt 0:00:03]} 58. Ra6 {[%emt 0:00:02]} Rd8 {[%emt 0:00:21]} 59. Kd2 {[%emt 0:00:10]} Rc8 {[%emt 0:00:14]} 60. Kc1 {[%emt 0:00:02]} Rd8 {[%emt 0:00:22]} 61. Kd2 {[%emt 0:00:02]} g4 {[%emt 0:00:09]} 62. hxg4 {[%emt 0:00:02]} hxg4 {[%emt 0:00:01]} 63. Kc1 {[%emt 0:00:03]} Kg5 {[%emt 0:00:17]} 64. Kb2 {[%emt 0:00:05]} Re8 {[%emt 0:00:06]} 65. Bb4 {[%emt 0:00:09]} g3 {[%emt 0:00:27]} 66. Bd2+ {[%emt 0:00:03]} Kg4 {[%emt 0:00:14]} 67. Rxf6 {[%emt 0:00:12]} Rb8+ {[%emt 0:00:01]} 68. Ka2 {[%emt 0:00:11]} g2 {[%emt 0:00:11]} 69. Be3 {[%emt 0:00:05]} g1=Q {[%emt 0:00:11]} 70. Bxg1 {[%emt 0:00:01]} c1=Q {[%emt 0:00:04]} 71. Bd4 {[%emt 0:00:03]} Qb1+ {[%emt 0:00:07]} 72. Ka3 {[%emt 0:00:01]} Qb3# {[%emt 0:00:01]} 0-1

[Event "2nd FIDE WCC Rapid G10"]
[Site "Minsk"]
[Date "2018.06.23"]
[Round "9"]
[White "Shukhman, Anna"]
[Black "Khamdamova, Afruza"]
[Result "1/2-1/2"]
[ECO "C42"]
[WhiteElo "1577"]
[BlackElo "1383"]
[Annotator "NA RC"]
[PlyCount "109"]
[EventDate "2018.06.22"]
[EventType "rapid"]
[EventCountry "BLR"]
[SourceTitle "playchess.com"]
[Source "ChessBase"]
[SourceQuality "1"]
[TimeControl "600+5"]

1. e4 {[%emt 0:00:00]} e5 {[%emt 0:00:01]} 2. Nf3 {[%emt 0:00:00]} Nf6 {[%emt 0:00:01]} 3. Nxe5 {[%emt 0:00:00]} d6 {[%emt 0:00:01]} 4. Nf3 {[%emt 0:00:01]} Nxe4 5. d4 d5 {[%emt 0:00:02]} 6. Bd3 {[%emt 0:00:02]} Nc6 {[%emt 0:00:01]} 7. O-O {[%emt 0:00:03]} Be7 {[%emt 0:00:01]} 8. c4 {[%emt 0:00:04]} Nf6 {[%emt 0:00:09]} 9. Nc3 {[%emt 0:00:02]} O-O {[%emt 0:00:22]} 10. Re1 {[%emt 0:00:38]} Bg4 {[%emt 0:01:22]} 11. Be2 {[%emt 0:00:35]} dxc4 {[%emt 0:01:08]} 12. Be3 {[%emt 0:00:06]} Be6 {[%emt 0:00:51]} 13. Ne5 {[%emt 0:02:09]} Nxe5 {[%emt 0:00:13]} 14. dxe5 {[%emt 0:00:02]} Nd7 {[%emt 0:00:04]} 15. Bf4 {[%emt 0:00:32]} f6 {[%emt 0:01:27]} 16. Bg4 {[%emt 0:00:21]} Bxg4 {[%emt 0:00:15]} 17. Qxg4 {[%emt 0:00:02]} fxe5 {[%emt 0:00:27]} 18. Bxe5 {[%emt 0:00:28]} Nxe5 {[%emt 0:00:01]} 19. Rxe5 {[%emt 0:00:02]} Bd6 {[%emt 0:00:02]} 20. Qxc4+ {[%emt 0:00:10]} Kh8 {[%emt 0:00:01]} 21. Ree1 {[%emt 0:00:05]} Qf6 {[%emt 0:00:14]} 22. Re2 {[%emt 0:01:16]} Qh6 {[%emt 0:00:39]} 23. h3 {[%emt 0:00:10]} Rf6 {[%emt 0:01:49]} 24. Rae1 {[%emt 0:00:29]} Raf8 {[%emt 0:00:03]} 25. Nd5 {[%emt 0:00:16]} Rg6 {[%emt 0:01:19]} 26. Qb3 {[%emt 0:00:59]} c6 {[%emt 0:00:13]} 27. Ne7 {[%emt 0:01:11]} Bxe7 {[%emt 0:00:24]} 28. Rxe7 {[%emt 0:00:03]} Qg5 {[%emt 0:00:05]} 29. Qf3 {[%emt 0:00:18]} Rgf6 {[%emt 0:00:10]} 30. Qe2 {[%emt 0:00:22]} Qc5 {[%emt 0:00:08]} 31. Qe3 {[%emt 0:00:53]} Qc2 {[%emt 0:00:25]} 32. Re2 {[%emt 0:00:13]} Qb1+ {[%emt 0:00:11]} 33. Kh2 {[%emt 0:00:03]} Qxa2 {[%emt 0:00:13]} 34. Rxb7 {[%emt 0:00:14]} Qd5 {[%emt 0:00:14]} 35. Rxa7 {[%emt 0:00:22]} Qd6+ {[%emt 0:00:02]} 36. Qg3 {[%emt 0:00:07]} Qxg3+ {[%emt 0:00:05]} 37. Kxg3 {[%emt 0:00:03]} c5 {[%emt 0:00:04]} 38. Rc7 {[%emt 0:00:06]} Rf5 {[%emt 0:00:01]} 39. f3 {[%emt 0:00:05]} h6 {[%emt 0:00:01]} 40. Kf2 {[%emt 0:00:04]} Rd8 {[%emt 0:00:01]} 41. Rc2 {[%emt 0:00:12]} Rb8 {[%emt 0:00:04]} 42. R7xc5 {[%emt 0:00:15]} Rxc5 {[%emt 0:00:01]} 43. Rxc5 {[%emt 0:00:01]} Rxb2+ {[%emt 0:00:01]} 44. Ke3 {[%emt 0:00:01]} Rxg2 {[%emt 0:00:02]} 45. Rc8+ {[%emt 0:00:02]} Kh7 {[%emt 0:00:01]} 46. Rc4 {[%emt 0:00:03]} Rh2 {[%emt 0:00:03]} 47. h4 {[%emt 0:00:03]} Kg6 {[%emt 0:00:02]} 48. Rg4+ {[%emt 0:00:17]} Kf6 {[%emt 0:00:01]} 49. Rf4+ {[%emt 0:00:02]} Kg6 {[%emt 0:00:05]} 50. Rg4+ {[%emt 0:00:01]} Kf6 {[%emt 0:00:12]} 51. Rf4+ {[%emt 0:00:01]} Kg6 {[%emt 0:00:01]} 52. Rg4+ {[%emt 0:00:01]} Kf6 {[%emt 0:00:01]} 53. Rf4+ {[%emt 0:00:01]} Kg6 {[%emt 0:00:00]} 54. Rg4+ {[%emt 0:00:01]} Kf6 {[%emt 0:00:01]} 55. Rf4+ {[%emt 0:00:01]} 1/2-1/2

[Event "2nd FIDE WCC Rapid G10"]
[Site "Minsk"]
[Date "2018.06.23"]
[Round "9"]
[White "Marchenko, Yelyzaveta"]
[Black "Shvedova, Alexandra"]
[Result "0-1"]
[ECO "D00"]
[WhiteElo "1510"]
[BlackElo "1758"]
[Annotator "NA RC"]
[PlyCount "134"]
[EventDate "2018.06.22"]
[EventType "rapid"]
[EventCountry "BLR"]
[SourceTitle "playchess.com"]
[Source "ChessBase"]
[SourceQuality "1"]
[TimeControl "600+5"]

1. d4 {[%emt 0:00:00]} d5 {[%emt 0:00:00]} 2. Bf4 {[%emt 0:00:00]} Nf6 {[%emt 0:00:03]} 3. e3 {[%emt 0:00:00]} c5 {[%emt 0:00:01]} 4. Nf3 {[%emt 0:00:00]} Nc6 {[%emt 0:00:02]} 5. c3 {[%emt 0:00:03]} Bf5 {[%emt 0:00:02]} 6. Bd3 {[%emt 0:00:02]} Bg6 {[%emt 0:00:01]} 7. O-O {[%emt 0:00:08]} e6 {[%emt 0:00:01]} 8. h3 {[%emt 0:00:02]} Be7 {[%emt 0:00:03]} 9. Bg3 {[%emt 0:00:18]} O-O {[%emt 0:00:06]} 10. Bxg6 {[%emt 0:00:02]} hxg6 {[%emt 0:00:02]} 11. Nbd2 {[%emt 0:00:06]} b5 {[%emt 0:00:21]} 12. dxc5 {[%emt 0:00:24]} Bxc5 {[%emt 0:00:05]} 13. Nd4 {[%emt 0:00:02]} Qb6 {[%emt 0:00:24]} 14. Qb3 {[%emt 0:00:23]} a6 {[%emt 0:00:24]} 15. N2f3 {[%emt 0:00:47]} Na5 {[%emt 0:00:04]} 16. Qc2 {[%emt 0:00:12]} Nc4 {[%emt 0:00:20]} 17. Ne5 {[%emt 0:00:42]} Nxe5 {[%emt 0:00:29]} 18. Bxe5 {[%emt 0:00:02]} Nd7 {[%emt 0:00:02]} 19. Bg3 {[%emt 0:00:16]} Rfc8 {[%emt 0:00:06]} 20. Qe2 {[%emt 0:00:25]} b4 {[%emt 0:00:08]} 21. cxb4 {[%emt 0:00:24]} Bxd4 {[%emt 0:00:15]} 22. exd4 {[%emt 0:00:01]} Qxd4 {[%emt 0:00:31]} 23. a3 {[%emt 0:00:10]} Qc4 {[%emt 0:00:20]} 24. Qd2 {[%emt 0:00:46]} Qb3 {[%emt 0:00:14]} 25. Rac1 {[%emt 0:00:51]} Nb6 {[%emt 0:00:10]} 26. Rxc8+ {[%emt 0:01:13]} Rxc8 {[%emt 0:00:01]} 27. Rc1 {[%emt 0:00:01]} Rxc1+ {[%emt 0:00:11]} 28. Qxc1 {[%emt 0:00:01]} Nc4 {[%emt 0:00:03]} 29. Qc3 {[%emt 0:01:13]} Qxc3 {[%emt 0:00:03]} 30. bxc3 {[%emt 0:00:02]} Nxa3 {[%emt 0:00:01]} 31. Kf1 {[%emt 0:00:05]} Nb5 {[%emt 0:00:01]} 32. Be5 {[%emt 0:00:02]} f6 {[%emt 0:00:01]} 33. Bd4 {[%emt 0:00:08]} e5 {[%emt 0:00:01]} 34. Bc5 {[%emt 0:00:13]} Nxc3 {[%emt 0:00:02]} 35. Ke1 {[%emt 0:00:01]} Kf7 {[%emt 0:00:08]} 36. f3 {[%emt 0:00:06]} Na4 {[%emt 0:00:16]} 37. Be3 {[%emt 0:00:07]} d4 {[%emt 0:00:04]} 38. Bc1 {[%emt 0:00:03]} Ke6 {[%emt 0:00:02]} 39. Kd2 {[%emt 0:00:01]} Kd5 {[%emt 0:00:01]} 40. Kd3 {[%emt 0:00:02]} Nc3 {[%emt 0:00:15]} 41. Bd2 {[%emt 0:00:08]} Nd1 {[%emt 0:00:11]} 42. Ke2 {[%emt 0:00:18]} Ne3 {[%emt 0:00:13]} 43. Bxe3 {[%emt 0:00:08]} dxe3 {[%emt 0:00:02]} 44. Kxe3 {[%emt 0:00:02]} Kc4 {[%emt 0:00:00]} 45. f4 {[%emt 0:00:21]} exf4+ {[%emt 0:00:06]} 46. Kxf4 {[%emt 0:00:02]} Kxb4 {[%emt 0:00:02]} 47. g4 {[%emt 0:00:05]} a5 {[%emt 0:00:00]} 48. g5 {[%emt 0:00:03]} fxg5+ {[%emt 0:00:15]} 49. Kxg5 {[%emt 0:00:01]} a4 {[%emt 0:00:01]} 50. h4 {[%emt 0:00:01]} a3 {[%emt 0:00:01]} 51. Kxg6 {[%emt 0:00:03]} a2 {[%emt 0:00:01]} 52. Kxg7 {[%emt 0:00:06]} a1=Q+ {[%emt 0:00:01]} 53. Kg6 {[%emt 0:00:07]} Qh8 {[%emt 0:00:01]} 54. h5 {[%emt 0:00:01]} Kc5 {[%emt 0:00:06]} 55. h6 {[%emt 0:00:01]} Qg8+ {[%emt 0:00:05]} 56. Kf6 {[%emt 0:00:03]} Qh7 {[%emt 0:00:01]} 57. Kg5 {[%emt 0:00:01]} Kd5 {[%emt 0:00:01]} 58. Kh5 {[%emt 0:00:01]} Ke5 {[%emt 0:00:02]} 59. Kg5 {[%emt 0:00:01]} Ke6 {[%emt 0:00:01]} 60. Kh5 {[%emt 0:00:01]} Kf5 {[%emt 0:00:01]} 61. Kh4 {[%emt 0:00:02]} Qxh6+ {[%emt 0:00:01]} 62. Kg3 {[%emt 0:00:01]} Qd2 {[%emt 0:00:02]} 63. Kf3 {[%emt 0:00:02]} Qd3+ {[%emt 0:00:01]} 64. Kf2 {[%emt 0:00:02]} Kg4 {[%emt 0:00:02]} 65. Kg2 {[%emt 0:00:01]} Qe2+ {[%emt 0:00:04]} 66. Kg1 {[%emt 0:00:01]} Kh3 {[%emt 0:00:01]} 67. Kh1 {[%emt 0:00:02]} Qh2# {[%emt 0:00:01]} 0-1

[Event "2nd FIDE WCC Rapid G10"]
[Site "Minsk"]
[Date "2018.06.23"]
[Round "9"]
[White "Szczotka, Klara"]
[Black "Kirdyashkina, Ekaterina"]
[Result "0-1"]
[ECO "C70"]
[WhiteElo "1465"]
[BlackElo "1463"]
[Annotator "NA RC"]
[PlyCount "82"]
[EventDate "2018.06.22"]
[EventType "rapid"]
[EventCountry "BLR"]
[SourceTitle "playchess.com"]
[Source "ChessBase"]
[SourceQuality "1"]
[TimeControl "600+5"]

1. e4 {[%emt 0:00:00]} e5 {[%emt 0:00:01]} 2. Nf3 {[%emt 0:00:00]} Nc6 {[%emt 0:00:00]} 3. Bb5 {[%emt 0:00:00]} a6 {[%emt 0:00:02]} 4. Ba4 {[%emt 0:00:00]} b5 {[%emt 0:00:01]} 5. Bb3 {[%emt 0:00:01]} Nf6 {[%emt 0:00:03]} 6. d3 {[%emt 0:00:01]} h6 {[%emt 0:00:02]} 7. c3 {[%emt 0:00:07]} Be7 {[%emt 0:00:10]} 8. Nbd2 {[%emt 0:00:02]} O-O {[%emt 0:00:24]} 9. h3 {[%emt 0:00:01]} d6 {[%emt 0:00:06]} 10. Nf1 {[%emt 0:00:01]} Na5 {[%emt 0:00:17]} 11. Bc2 {[%emt 0:00:02]} Be6 {[%emt 0:00:08]} 12. g4 {[%emt 0:00:01]} Nh7 {[%emt 0:00:17]} 13. Ng3 {[%emt 0:00:05]} Nc6 {[%emt 0:00:43]} 14. Nf5 {[%emt 0:00:09]} Bxf5 {[%emt 0:01:06]} 15. gxf5 {[%emt 0:00:01]} Ng5 {[%emt 0:00:11]} 16. Qe2 {[%emt 0:02:11]} Nxf3+ {[%emt 0:00:20]} 17. Qxf3 {[%emt 0:00:02]} b4 {[%emt 0:00:29]} 18. Rg1 {[%emt 0:00:10]} Kh7 {[%emt 0:00:17]} 19. Qg4 {[%emt 0:00:43]} Bf6 {[%emt 0:00:33]} 20. h4 {[%emt 0:00:53]} bxc3 {[%emt 0:00:04]} 21. bxc3 {[%emt 0:00:01]} d5 {[%emt 0:00:02]} 22. Bb3 {[%emt 0:01:35]} Ne7 {[%emt 0:00:33]} 23. Bg5 {[%emt 0:01:01]} Rg8 {[%emt 0:00:32]} 24. Qh5 {[%emt 0:00:32]} Qf8 {[%emt 0:00:46]} 25. Bxf6 {[%emt 0:00:58]} gxf6 {[%emt 0:00:02]} 26. Ke2 {[%emt 0:00:09]} c6 {[%emt 0:00:12]} 27. f3 {[%emt 0:00:22]} a5 {[%emt 0:00:04]} 28. Kf2 {[%emt 0:00:27]} a4 {[%emt 0:00:08]} 29. Bc2 {[%emt 0:00:04]} a3 {[%emt 0:01:38]} 30. Bb3 {[%emt 0:00:05]} Rd8 {[%emt 0:00:15]} 31. Rxg8 {[%emt 0:00:40]} Nxg8 {[%emt 0:00:02]} 32. exd5 {[%emt 0:00:26]} cxd5 {[%emt 0:00:01]} 33. Rc1 {[%emt 0:00:44]} Qc5+ {[%emt 0:00:03]} 34. Ke2 {[%emt 0:00:04]} Rd7 {[%emt 0:00:17]} 35. Ba4 {[%emt 0:00:10]} Re7 {[%emt 0:00:07]} 36. c4 {[%emt 0:00:15]} e4 {[%emt 0:00:14]} 37. fxe4 {[%emt 0:00:30]} dxe4 {[%emt 0:00:01]} 38. dxe4 {[%emt 0:00:18]} Rxe4+ 39. Kf1 {[%emt 0:00:13]} Rf4+ {[%emt 0:00:18]} 40. Ke1 {[%emt 0:00:07]} Qf2+ {[%emt 0:00:01]} 41. Kd1 {[%emt 0:00:02]} Rd4# {[%emt 0:00:03]} 0-1